fUST/lending_fUST_20240919
["ID","MTS","AMOUNT","RATE_DAILY","PERIOD"]
[338589416,1726751959931,-586.55179903,0.00033823,120]
[338589417,1726751959956,-9500.0,0.00033823,30]
[338589418,1726751959983,-1670.13666982,0.00033823,120]
[338589419,1726751960010,-310.05536898,0.00033823,30]
[338589420,1726751960035,-1000.0,0.00033823,120]
[338589421,1726751960059,-150.0,0.00033823,69]
[338589422,1726751960083,-150.0,0.00033823,30]
[338589423,1726751960106,-150.0,0.00033823,60]
[338589424,1726751960132,-1395.74623735,0.00033823,120]
[338589425,1726751960157,-1542.81014904,0.00033823,120]
[338589426,1726751960181,-344.0,0.00033823,60]
[338589427,1726751960205,-344.0,0.00033823,90]
[338589428,1726751960230,-344.0,0.00033823,120]
[338589429,1726751960254,-1586.70789494,0.00033823,35]
[338589430,1726751960278,-17268.54364011,0.00033823,120]
[338589431,1726751960303,-275.146429,0.00033823,120]
[338589432,1726751960327,-269.99006067,0.00033823,30]
[338589433,1726751960351,-101234.92612304,0.00033823,120]
[338589434,1726751960375,-7012.43638433,0.00033823,120]
[338589435,1726751960400,-3000.0,0.00033823,110]
[338589436,1726751960425,-3000.0,0.00033823,113]
[338589437,1726751960449,-300.0,0.00033823,30]
[338589438,1726751960475,-21128.20589751,0.00033823,120]
[338589439,1726751960500,-273.97968316,0.00033823,120]
[338589440,1726751960525,-1000.0,0.00033823,120]
[338589441,1726751960549,-1000.0,0.00033823,120]
[338589442,1726751960574,-1000.0,0.00033823,120]
[338589443,1726751960598,-1000.0,0.00033823,120]
[338589444,1726751960625,-1000.0,0.00033823,120]
[338589445,1726751960650,-1000.0,0.00033823,120]
[338589446,1726751960674,-1000.0,0.00033823,120]
[338589447,1726751960699,-1000.0,0.00033823,120]
[338589448,1726751960724,-1000.0,0.00033823,120]
[338589449,1726751960748,-1000.0,0.00033823,120]
[338589450,1726751960773,-1000.0,0.00033823,120]
[338589451,1726751960798,-1000.0,0.00033823,120]
[338589452,1726751960823,-1000.0,0.00033823,120]
[338589453,1726751960847,-1000.0,0.00033823,120]
[338589454,1726751960873,-1000.0,0.00033823,120]
[338589455,1726751961015,904.84957341,0.00033823,120]
[338589456,1726751977471,-503.44,0.00038356,120]
[338589457,1726751977497,-1999496.56,0.00042,30]
[338589458,1726751981589,-901221.38526317,0.00042,30]
[338589459,1726751981615,-2000.0,0.00042,32]
[338589460,1726751981649,-250.0,0.00042,30]
[338589461,1726751981675,-151.0,0.00042055,120]
[338589462,1726751981701,-151.0,0.00042082,120]
[338589463,1726751981727,-1500.0,0.00042136,42]
[338589464,1726751981753,-1790.49,0.00042191,120]
[338589465,1726751981778,-600.0,0.00042191,120]
[338589466,1726751981804,-500.0,0.00042191,120]
[338589467,1726751981829,-1696.57897335,0.000424,120]
[338589468,1726751981854,-4576.27947936,0.000425,120]
[338589469,1726751981878,-10000.0,0.000425,60]
[338589470,1726751981910,-1500.0,0.00042545,42]
[338589471,1726751981936,-1790.49,0.00042739,120]
[338589472,1726751981962,-600.0,0.00042739,120]
[338589473,1726751981988,-500.0,0.00042739,120]
[338589474,1726751982015,-500.0,0.00042898,120]
[338589475,1726751982040,-1114.16560487,0.000429,30]
[338589476,1726751982065,-10001.65079159,0.000429,120]
[338589477,1726751982091,-1500.0,0.00042955,42]
[338589478,1726751982116,-2424.6301122,0.00043,120]
[338589479,1726751982143,-2487.27631947,0.00043,120]
[338589480,1726751982167,-150.0,0.00043,60]
[338589481,1726751982192,-2491.93723677,0.00043,120]
[338589482,1726751982218,-500.0,0.00043,120]
[338589483,1726751982243,-237.85049378,0.00043,120]
[338589484,1726751982269,-326.83572778,0.00043,120]
[338589485,1726751982295,-333.42038288,0.00043,120]
[338589486,1726751982319,-49644.35021329,0.00043,120]
[338589487,1726751982345,-1790.49,0.00043287,120]
[338589488,1726751982370,-609.14554173,0.00043287,120]
[338589489,1726751982397,-500.0,0.00043287,120]
[338589490,1726751982422,-1500.0,0.00043364,42]
[338589491,1726751982448,-1000.0,0.00043561,120]
[338589492,1726751982473,-1000.0,0.00043753,120]
[338589493,1726751982499,-1500.0,0.00043773,42]
[338589494,1726751982524,-152.0,0.00043799,31]
[338589495,1726751982550,-1577.88,0.000438,60]
[338589496,1726751982575,-8741.1753207,0.000438,30]
[338589497,1726751982601,-151.0,0.00043808,120]
[338589498,1726751982625,-1790.49,0.00043835,120]
[338589499,1726751982651,-500.0,0.00043835,120]
[338589500,1726751982676,-1000.0,0.00043835,120]
[338589501,1726751982701,-1000.0,0.00043835,120]
[338589502,1726751982726,-1000.0,0.00043835,120]
[338589503,1726751982751,-1000.0,0.00043835,120]
[338589504,1726751982776,-1000.0,0.00043835,120]
[338589505,1726751982802,-1000.0,0.00043835,120]
[338589506,1726751982827,-1000.0,0.00043835,120]
[338589507,1726751982852,-1000.0,0.00043835,120]
[338589508,1726751982878,-1000.0,0.00043835,120]
[338589509,1726751982906,-1000.0,0.00043835,120]
[338589510,1726751982932,-1000.0,0.00043835,120]
[338589511,1726751982959,-1000.0,0.00043835,120]
[338589512,1726751982984,-1000.0,0.00043835,120]
[338589513,1726751983009,-545.21104235,0.00043835,120]
[338589514,1726751983035,-757.69,0.00043835,120]
[338589515,1726751983061,-2000.0,0.00043835,30]
[338589516,1726751983085,-2000.0,0.00043835,30]
[338589517,1726751983110,-2000.0,0.00043835,30]
[338589518,1726751983136,-2000.0,0.00043835,30]
[338589519,1726751983161,-2000.0,0.00043835,30]
[338589520,1726751983186,-2000.0,0.00043835,30]
[338589521,1726751983212,-2000.0,0.00043835,30]
[338589522,1726751983236,-2000.0,0.00043835,30]
[338589523,1726751983261,-2000.0,0.00043835,30]
[338589524,1726751983285,-2000.0,0.00043835,30]
[338589525,1726751983309,-2000.0,0.00043835,30]
[338589526,1726751983333,-2000.0,0.00043835,30]
[338589527,1726751983581,-2000.0,0.00043835,30]
[338589528,1726751983609,-2000.0,0.00043835,30]
[338589529,1726751983634,-2000.0,0.00043835,30]
[338589530,1726751983660,-2000.0,0.00043835,30]
[338589531,1726751983685,-2000.0,0.00043835,30]
[338589532,1726751983711,-2000.0,0.00043835,30]
[338589533,1726751983736,-2000.0,0.00043835,30]
[338589534,1726751983760,-2000.0,0.00043835,30]
[338589535,1726751983784,-2000.0,0.00043835,30]
[338589536,1726751983808,-1251.20703201,0.00043835,30]
[338589550,1726752529733,-160.70917834,0.00014514,2]
[338589551,1726752529757,-213.12082166,0.0001461,2]
[338589552,1726752561276,-1356.67933591,0.0001461,2]
[338589566,1726752632429,-1430.19984243,0.0001461,2]
[338589567,1726752632439,-300.0,0.00014614,2]
[338589568,1726752632449,-300.0,0.00014614,2]
[338589569,1726752632459,-5389.5149574,0.00014615,2]
[338589570,1726752632480,-18968.94314244,0.00014615,2]
[338589571,1726752632491,-541.54190016,0.00014615,2]
[338589572,1726752632502,-533.467755,0.00014857,2]
[338589573,1726752632511,-190.3742462,0.00014877,2]
[338589574,1726752632520,-158.8562332,0.00015053,2]
[338589575,1726752632530,-250.0,0.00015079,2]
[338589576,1726752632539,-250.0,0.0001512,2]
[338589577,1726752632549,-250.0,0.00015161,2]
[338589578,1726752632560,-250.0,0.00015203,2]
[338589579,1726752632570,-250.0,0.00015244,2]
[338589580,1726752632579,-250.0,0.00015285,2]
[338589581,1726752632588,-250.0,0.00015327,2]
[338589582,1726752632598,-250.0,0.00015368,2]
[338589583,1726752632609,-250.0,0.00015409,2]
[338589584,1726752632623,-250.0,0.00015451,2]
[338589585,1726752632632,-250.0,0.00015492,2]
[338589586,1726752632641,-250.0,0.00015534,2]
[338589587,1726752632650,-250.0,0.00015575,2]
[338589588,1726752632659,-250.0,0.00015616,2]
[338589589,1726752632668,-250.0,0.00015658,2]
[338589590,1726752632677,-250.0,0.00015699,2]
[338589591,1726752632687,-250.0,0.0001574,2]
[338589592,1726752632696,-250.0,0.00015782,2]
[338589593,1726752632705,-250.0,0.00015823,2]
[338589594,1726752632715,-250.0,0.00015864,2]
[338589595,1726752632725,-420.0,0.00016,2]
[338589596,1726752632734,-420.0,0.00016075,2]
[338589597,1726752632744,-1663.98733268,0.00016242,2]
[338589598,1726752632754,-1000.0,0.00016328,2]
[338589599,1726752632763,-1025.13959907,0.00016338,2]
[338589600,1726752632772,-208.7923626,0.00016356,2]
[338589601,1726752632782,-523.621,0.00016417,2]
[338589602,1726752632792,-500.0,0.00016417,2]
[338589603,1726752632801,-500.0,0.00016417,2]
[338589604,1726752632811,-500.0,0.00016417,2]
[338589605,1726752632820,-500.0,0.00016417,2]
[338589606,1726752632830,-384.97890808,0.00016417,2]
[338589607,1726752632839,-621.95042649,0.00016417,2]
[338589608,1726752632849,-500.0,0.00016417,2]
[338589609,1726752632859,-500.03953449,0.00016417,2]
[338589610,1726752632869,-450.67732708,0.00016417,2]
[338589624,1726752638470,-356.10552356,0.00015392,2]
[338589625,1726752638480,-190.67161466,0.00016417,2]
[338589626,1726752638489,-271.97794932,0.00016417,2]
[338589627,1726752638500,-272.60450485,0.00016417,2]
[338589628,1726752638509,-500.0,0.00016417,2]
[338589629,1726752638518,-500.0,0.00016417,2]
[338589630,1726752638527,-152.18971573,0.00016417,2]
[338589631,1726752638536,-500.0,0.00016417,2]
[338589632,1726752638545,-500.0,0.00016417,2]
[338589633,1726752638555,-500.0,0.00016417,2]
[338589634,1726752638564,-500.0,0.00016417,2]
[338589635,1726752638573,-500.0,0.00016417,2]
[338589636,1726752638583,-500.0,0.00016417,2]
[338589637,1726752638592,-500.0,0.00016417,2]
[338589638,1726752638601,-500.0,0.00016417,2]
[338589639,1726752638612,-500.0,0.00016417,2]
[338589640,1726752638623,-500.0,0.00016417,2]
[338589641,1726752638633,-500.0,0.00016417,2]
[338589642,1726752638657,-500.0,0.00016417,2]
[338589643,1726752638667,-258108.57424542,0.00016418,2]
[338589660,1726752640373,-75785.12266658,0.00016418,2]
[338589662,1726752640383,-48288.19368063,0.00016418,2]
[338589669,1726752640436,-31916.05262727,0.00016418,2]
[338589671,1726752640445,-7839.62034668,0.00016428,2]
[338589673,1726752640456,-808.88059479,0.00016428,2]
[338589675,1726752640467,-13939.44310198,0.00016428,2]
[338589677,1726752640479,-809.96960681,0.00016428,2]
[338589680,1726752640490,-329.7518327,0.00016428,2]
[338589787,1726752720454,460.0,0.00022,60]
[338589790,1726752970385,500.0,0.00022999,120]
[338589791,1726752972788,500.0,0.00022999,120]
[338589792,1726752975904,3957.18,0.00022999,120]
[338589793,1726752976321,500.0,0.00022999,120]
[338589794,1726752976354,746.08,0.00022999,120]
[338589795,1726752977253,599.3,0.00022999,120]
[338589796,1726752978450,500.0,0.00022999,120]
[338589797,1726752978665,676.13,0.00022999,120]
[338589798,1726752978958,1332.97,0.00022999,120]
[338589799,1726752979294,1332.97,0.00022999,120]
[338589800,1726752979344,500.0,0.00022999,120]
[338589801,1726752979554,1332.97,0.00022999,120]
[338589802,1726752979872,1332.97,0.00022999,120]
[338589803,1726752980485,1332.97,0.00022999,120]
[338589804,1726752980860,1332.97,0.00022999,120]
[338589805,1726752981146,1332.97,0.00022999,120]
[338589806,1726752981451,1332.97,0.00022999,120]
[338589807,1726752981740,1332.97,0.00022999,120]
[338589808,1726752982043,1332.97,0.00022999,120]
[338589809,1726752982341,1332.97,0.00022999,120]
[338589810,1726752982615,1332.97,0.00022999,120]
[338589811,1726752982903,1332.97,0.00022999,120]
[338589812,1726752983171,1332.97,0.00022999,120]
[338589813,1726752983428,1332.97,0.00022999,120]
[338589814,1726752983707,1332.97,0.00022999,120]
[338589815,1726752984058,1332.97,0.00022999,120]
[338589816,1726752984411,1332.97,0.00022999,120]
[338589817,1726752984666,1332.97,0.00022999,120]
[338589818,1726752984736,500.0,0.00022999,120]
[338589819,1726752984936,1332.97,0.00022999,120]
[338589820,1726752985188,514.78046155,0.00022999,120]
[338589821,1726752985218,1332.97,0.00022999,120]
[338589822,1726752985494,1332.97,0.00022999,120]
[338589823,1726752985760,1332.97,0.00022999,120]
[338589824,1726752986305,1333.1446795,0.00022999,120]
[338589825,1726752986927,500.0,0.00022999,120]
[338589826,1726752987042,500.0,0.00022999,120]
[338589827,1726752987411,500.0,0.00022999,120]
[338589828,1726752989064,500.0,0.00022999,120]
[338589829,1726752989547,500.0,0.00022999,120]
[338589830,1726752993122,500.0,0.00022999,120]
[338589831,1726752993568,325.6,0.00022999,120]
[338589832,1726752994360,593.55211055,0.00022999,120]
[338589833,1726752997136,627.61,0.00022999,120]
[338589834,1726752998244,500.0,0.00022999,120]
[338589835,1726752998551,500.0,0.00022999,120]
[338589842,1726753000657,500.0,0.00022999,120]
[338589856,1726753003655,1555.94,0.00022999,120]
[338589869,1726753005888,500.0,0.00022999,120]
[338589871,1726753006588,500.0,0.00022999,120]
[338589875,1726753007426,500.0,0.00022999,120]
[338589877,1726753007588,530.78,0.00022999,120]
[338589878,1726753007739,500.0,0.00022999,120]
[338589883,1726753008805,500.0,0.00022999,120]
[338589884,1726753008842,761.69,0.00022999,120]
[338589888,1726753009545,506.86573579,0.00022999,120]
[338589894,1726753010921,500.0,0.00022999,120]
[338589895,1726753012068,621.27,0.00022999,120]
[338589896,1726753012508,500.0,0.00022999,120]
[338589897,1726753014201,500.0,0.00022999,120]
[338589898,1726753014390,836.21,0.00022999,120]
[338589899,1726753014434,506.87,0.00022999,120]
[338589900,1726753015170,213.97306972,0.00022999,120]
[338589901,1726753015383,1593.48,0.00022999,120]
[338589902,1726753015433,500.0,0.00022999,120]
[338589903,1726753015503,806.99,0.00022999,120]
[338589904,1726753018221,500.0,0.00022999,120]
[338589905,1726753020124,1383.58,0.00022999,120]
[338589906,1726753021698,1911.4,0.00022999,120]
[338589907,1726753022083,500.0,0.00022999,120]
[338589908,1726753022906,782.79,0.00022999,120]
[338589909,1726753023821,557.94,0.00022999,120]
[338589910,1726753025216,500.0,0.00022999,120]
[338589911,1726753025373,500.0,0.00022999,120]
[338589912,1726753026070,500.0,0.00022999,120]
[338589913,1726753027239,891.5,0.00022999,120]
[338589914,1726753029141,500.0,0.00022999,120]
[338589915,1726753030514,500.0,0.00022999,120]
[338589916,1726753032618,967.66,0.00022999,120]
[338589917,1726753032708,500.0,0.00022999,120]
[338589918,1726753033091,1753.3,0.00022999,120]
[338589919,1726753033532,500.0,0.00022999,120]
[338589920,1726753033791,500.0,0.00022999,120]
[338589921,1726753034065,500.0,0.00022999,120]
[338589922,1726753034333,500.0,0.00022999,120]
[338589923,1726753034606,500.0,0.00022999,120]
[338589924,1726753034887,500.0,0.00022999,120]
[338589925,1726753035263,500.0,0.00022999,120]
[338589926,1726753035357,500.0,0.00022999,120]
[338589927,1726753035537,500.0,0.00022999,120]
[338589928,1726753035786,505.75194683,0.00022999,120]
[338589929,1726753035814,500.0,0.00022999,120]
[338589930,1726753036084,500.0,0.00022999,120]
[338589931,1726753036352,500.0,0.00022999,120]
[338589932,1726753036634,500.0,0.00022999,120]
[338589933,1726753036884,500.0,0.00022999,120]
[338589934,1726753037152,500.0,0.00022999,120]
[338589935,1726753037435,500.0,0.00022999,120]
[338589936,1726753038024,500.0,0.00022999,120]
[338589937,1726753038324,500.0,0.00022999,120]
[338589938,1726753038595,500.0,0.00022999,120]
[338589940,1726753038889,500.0,0.00022999,120]
[338589942,1726753039145,500.0,0.00022999,120]
[338589943,1726753039413,500.0,0.00022999,120]
[338589944,1726753039536,500.0,0.00022999,120]
[338589945,1726753039679,582.89604792,0.00022999,120]
[338589946,1726753039907,500.0,0.00022999,120]
[338589947,1726753041065,786.94,0.00022999,120]
[338589948,1726753042291,500.0,0.00022999,120]
[338589949,1726753043272,500.0,0.00022999,120]
[338589950,1726753043306,500.0,0.00022999,120]
[338589951,1726753044401,500.0,0.00022999,120]
[338589952,1726753045676,500.0,0.00022999,120]
[338589953,1726753046686,500.0,0.00022999,120]
[338589954,1726753046899,500.0,0.00022999,120]
[338589955,1726753047323,500.0,0.00022999,120]
[338589956,1726753049158,500.0,0.00022999,120]
[338589957,1726753050938,500.0,0.00022999,120]
[338589958,1726753051310,500.0,0.00022999,120]
[338589959,1726753051567,500.0,0.00022999,120]
[338589960,1726753052823,500.0,0.00022999,120]
[338589961,1726753053658,500.0,0.00022999,120]
[338589962,1726753054382,500.0,0.00022999,120]
[338589963,1726753054455,500.0,0.00022999,120]
[338589964,1726753055324,1730.11,0.00022999,120]
[338589965,1726753056985,500.0,0.00022999,120]
[338589966,1726753059666,500.0,0.00022999,120]
[338589967,1726753059788,500.0,0.00022999,120]
[338589968,1726753059981,500.0,0.00022999,120]
[338589969,1726753062586,500.0,0.00022999,120]
[338589970,1726753062631,500.0,0.00022999,120]
[338589971,1726753065414,500.0,0.00022999,120]
[338589972,1726753067024,1069.61,0.00022999,120]
[338589973,1726753067996,395.7,0.00022999,120]
[338589974,1726753068285,500.0,0.00022999,120]
[338589975,1726753069878,500.0,0.00022999,120]
[338589976,1726753072047,500.0,0.00022999,120]
[338589977,1726753072252,500.0,0.00022999,120]
[338589979,1726753073117,500.0,0.00022999,120]
[338589981,1726753074339,500.0,0.00022999,120]
[338589982,1726753076014,500.0,0.00022999,120]
[338589983,1726753076134,884.0,0.00022999,120]
[338589984,1726753076391,500.0,0.00022999,120]
[338589985,1726753077947,641.16,0.00022999,120]
[338589986,1726753078220,641.16,0.00022999,120]
[338589987,1726753078418,380.84,0.00022999,120]
[338589988,1726753078471,641.16,0.00022999,120]
[338589989,1726753078618,877.54,0.00022999,120]
[338589990,1726753078748,641.16,0.00022999,120]
[338589991,1726753078892,877.54,0.00022999,120]
[338589992,1726753079496,641.16,0.00022999,120]
[338589993,1726753079540,877.54,0.00022999,120]
[338589994,1726753079576,641.16,0.00022999,120]
[338589995,1726753079612,877.54,0.00022999,120]
[338589996,1726753079644,641.16,0.00022999,120]
[338589997,1726753079723,877.54,0.00022999,120]
[338589998,1726753080024,641.16,0.00022999,120]
[338589999,1726753080120,877.54,0.00022999,120]
[338590000,1726753080380,877.54,0.00022999,120]
[338590001,1726753080644,877.54,0.00022999,120]
[338590002,1726753080897,641.16,0.00022999,120]
[338590003,1726753080928,877.54,0.00022999,120]
[338590004,1726753081177,641.16,0.00022999,120]
[338590005,1726753081214,877.54,0.00022999,120]
[338590006,1726753081451,641.16,0.00022999,120]
[338590007,1726753081518,877.54,0.00022999,120]
[338590009,1726753081750,641.16,0.00022999,120]
[338590010,1726753081783,877.54,0.00022999,120]
[338590011,1726753081999,641.16,0.00022999,120]
[338590012,1726753082032,877.54,0.00022999,120]
[338590013,1726753082330,641.16,0.00022999,120]
[338590014,1726753082360,877.54,0.00022999,120]
[338590015,1726753082597,877.54,0.00022999,120]
[338590016,1726753082631,771.79,0.00022999,120]
[338590017,1726753082661,641.16,0.00022999,120]
[338590018,1726753082890,877.54,0.00022999,120]
[338590019,1726753082925,641.16,0.00022999,120]
[338590020,1726753082961,771.79,0.00022999,120]
[338590021,1726753083186,877.54,0.00022999,120]
[338590022,1726753083223,771.79,0.00022999,120]
[338590023,1726753083257,641.16,0.00022999,120]
[338590024,1726753083447,877.54,0.00022999,120]
[338590025,1726753083484,771.79,0.00022999,120]
[338590026,1726753083629,641.16,0.00022999,120]
[338590027,1726753083727,877.54,0.00022999,120]
[338590028,1726753083783,771.79,0.00022999,120]
[338590029,1726753083883,641.16,0.00022999,120]
[338590030,1726753084015,877.54,0.00022999,120]
[338590031,1726753084051,771.79,0.00022999,120]
[338590032,1726753084137,641.16,0.00022999,120]
[338590033,1726753084280,877.54,0.00022999,120]
[338590034,1726753084316,771.79,0.00022999,120]
[338590035,1726753084463,641.16,0.00022999,120]
[338590036,1726753084541,877.54,0.00022999,120]
[338590037,1726753084573,771.79,0.00022999,120]
[338590038,1726753084762,641.16,0.00022999,120]
[338590039,1726753084803,877.54,0.00022999,120]
[338590040,1726753084848,771.79,0.00022999,120]
[338590041,1726753085014,641.16,0.00022999,120]
[338590042,1726753085086,877.76291648,0.00022999,120]
[338590043,1726753085169,771.79,0.00022999,120]
[338590044,1726753085279,641.32068984,0.00022999,120]
[338590045,1726753085442,771.79,0.00022999,120]
[338590046,1726753085726,771.79,0.00022999,120]
[338590047,1726753085965,771.79,0.00022999,120]
[338590048,1726753086294,500.0,0.00022999,120]
[338590049,1726753086547,500.0,0.00022999,120]
[338590050,1726753086823,771.79,0.00022999,120]
[338590051,1726753086865,500.0,0.00022999,120]
[338590052,1726753086895,771.79,0.00022999,120]
[338590053,1726753087090,771.79,0.00022999,120]
[338590054,1726753087135,500.0,0.00022999,120]
[338590055,1726753087222,500.0,0.00022999,120]
[338590056,1726753087363,771.79,0.00022999,120]
[338590057,1726753087414,500.0,0.00022999,120]
[338590058,1726753087493,500.0,0.00022999,120]
[338590059,1726753087649,771.79,0.00022999,120]
[338590060,1726753087707,500.0,0.00022999,120]
[338590061,1726753087765,545.16806321,0.00022999,120]
[338590062,1726753087942,771.79,0.00022999,120]
[338590063,1726753087981,500.0,0.00022999,120]
[338590064,1726753088212,771.79,0.00022999,120]
[338590065,1726753088273,500.0,0.00022999,120]
[338590066,1726753088500,771.79,0.00022999,120]
[338590067,1726753088543,500.0,0.00022999,120]
[338590068,1726753088842,771.79,0.00022999,120]
[338590069,1726753088905,500.0,0.00022999,120]
[338590070,1726753089226,771.79,0.00022999,120]
[338590071,1726753089304,500.0,0.00022999,120]
[338590072,1726753089885,500.0,0.00022999,120]
[338590073,1726753091256,168.55386786,0.00022999,120]
[338590074,1726753091436,771.90347551,0.00022999,120]
[338590075,1726753093345,902.5,0.00022999,120]
[338590076,1726753093598,902.5,0.00022999,120]
[338590077,1726753093873,902.5,0.00022999,120]
[338590078,1726753094124,902.5,0.00022999,120]
[338590079,1726753094392,902.5,0.00022999,120]
[338590080,1726753094653,902.5,0.00022999,120]
[338590081,1726753094917,902.5,0.00022999,120]
[338590082,1726753095180,902.5,0.00022999,120]
[338590083,1726753095361,933.24,0.00022999,120]
[338590084,1726753095532,500.0,0.00022999,120]
[338590085,1726753095673,933.24,0.00022999,120]
[338590086,1726753095857,902.5,0.00022999,120]
[338590087,1726753095930,500.0,0.00022999,120]
[338590088,1726753095962,933.24,0.00022999,120]
[338590089,1726753096136,902.5,0.00022999,120]
[338590090,1726753096235,500.0,0.00022999,120]
[338590091,1726753096349,933.24,0.00022999,120]
[338590092,1726753096507,500.0,0.00022999,120]
[338590093,1726753096559,902.5,0.00022999,120]
[338590094,1726753096625,933.24,0.00022999,120]
[338590095,1726753096831,902.5,0.00022999,120]
[338590096,1726753096892,933.24,0.00022999,120]
[338590097,1726753097120,902.5,0.00022999,120]
[338590098,1726753097183,933.24,0.00022999,120]
[338590099,1726753097363,902.5,0.00022999,120]
[338590100,1726753097444,933.24,0.00022999,120]
[338590101,1726753097736,933.24,0.00022999,120]
[338590102,1726753097805,902.5,0.00022999,120]
[338590103,1726753098319,933.24,0.00022999,120]
[338590104,1726753098368,933.24,0.00022999,120]
[338590105,1726753098399,902.5,0.00022999,120]
[338590106,1726753098576,933.24,0.00022999,120]
[338590107,1726753098825,933.24,0.00022999,120]
[338590108,1726753099093,933.24,0.00022999,120]
[338590109,1726753099374,933.24,0.00022999,120]
[338590110,1726753099635,933.24,0.00022999,120]
[338590111,1726753100186,933.24,0.00022999,120]
[338590112,1726753100233,933.24,0.00022999,120]
[338590113,1726753100413,933.24,0.00022999,120]
[338590114,1726753100796,500.0,0.00022999,120]
[338590115,1726753101079,500.0,0.00022999,120]
[338590116,1726753101357,500.0,0.00022999,120]
[338590117,1726753101643,500.0,0.00022999,120]
[338590118,1726753101677,933.24,0.00022999,120]
[338590119,1726753101944,500.0,0.00022999,120]
[338590120,1726753101975,500.0,0.00022999,120]
[338590121,1726753102004,933.24,0.00022999,120]
[338590122,1726753102061,902.5,0.00022999,120]
[338590123,1726753102097,500.0,0.00022999,120]
[338590124,1726753102234,933.24,0.00022999,120]
[338590125,1726753102263,500.0,0.00022999,120]
[338590126,1726753102299,500.0,0.00022999,120]
[338590127,1726753102435,485.23933606,0.00022999,120]
[338590128,1726753102504,902.5,0.00022999,120]
[338590129,1726753102534,933.24,0.00022999,120]
[338590130,1726753102561,500.0,0.00022999,120]
[338590131,1726753102589,500.0,0.00022999,120]
[338590132,1726753102689,902.5,0.00022999,120]
[338590133,1726753102761,933.38004966,0.00022999,120]
[338590134,1726753102832,500.0,0.00022999,120]
[338590135,1726753102901,851.1,0.00022999,120]
[338590136,1726753102975,902.5,0.00022999,120]
[338590137,1726753103119,500.0,0.00022999,120]
[338590138,1726753103162,851.1,0.00022999,120]
[338590139,1726753103252,902.5,0.00022999,120]
[338590140,1726753103439,851.1,0.00022999,120]
[338590141,1726753103488,500.0,0.00022999,120]
[338590142,1726753103763,500.0,0.00022999,120]
[338590143,1726753104046,500.0,0.00022999,120]
[338590144,1726753104112,851.1,0.00022999,120]